[Event "Late-Titled-Tuesday-Blitz-June-18-2024"]
[Site "Chess.com"]
[Date "2024.06.18"]
[Round "8"]
[White "pirulillo"]
[Black "Pelusiansky"]
[Result "0-1"]
[WhiteElo "2412"]
[BlackElo "2576"]
[TimeControl "180+1"]
[EndTime "15:29:20 PDT"]
[Termination "Pelusiansky won by checkmate"]

1. e4 {[%clk 0:03:00.9]} 1... c5 {[%clk 0:02:56]} 2. Nf3 {[%clk 0:03:00.4]} 2...
Nc6 {[%clk 0:02:55.9]} 3. b4 {[%clk 0:02:59]} 3... d5 {[%clk 0:02:50.4]} 4. exd5
{[%clk 0:02:56.3]} 4... Qxd5 {[%clk 0:02:44.3]} 5. b5 {[%clk 0:02:32.8]} 5...
Ne5 {[%clk 0:02:36.7]} 6. Nc3 {[%clk 0:02:25.9]} 6... Nxf3+ {[%clk 0:02:35.7]}
7. gxf3 {[%clk 0:02:25.2]} 7... Qd8 {[%clk 0:02:27.4]} 8. Bc4 {[%clk 0:02:20.2]}
8... Nf6 {[%clk 0:02:25.3]} 9. Qe2 {[%clk 0:02:14.8]} 9... e6 {[%clk 0:02:24.2]}
10. Bb2 {[%clk 0:02:11.5]} 10... Be7 {[%clk 0:02:13]} 11. Rg1 {[%clk 0:02:02.4]}
11... O-O {[%clk 0:01:41.8]} 12. O-O-O {[%clk 0:01:40.8]} 12... g6 {[%clk
0:01:33.3]} 13. h4 {[%clk 0:01:35.8]} 13... a6 {[%clk 0:01:31]} 14. h5 {[%clk
0:01:32.6]} 14... Nxh5 {[%clk 0:01:20.4]} 15. Qe5 {[%clk 0:01:22.7]} 15... Ng7
{[%clk 0:01:01.4]} 16. Qh2 {[%clk 0:01:07.6]} 16... Bf6 {[%clk 0:00:52.7]} 17.
Rh1 {[%clk 0:00:51.7]} 17... h5 {[%clk 0:00:52.8]} 18. Rdg1 {[%clk 0:00:48.9]}
18... axb5 {[%clk 0:00:52.2]} 19. Bxb5 {[%clk 0:00:46.7]} 19... Bd7 {[%clk
0:00:48]} 20. Bd3 {[%clk 0:00:46]} 20... Be8 {[%clk 0:00:37.3]} 21. f4 {[%clk
0:00:18.2]} 21... c4 {[%clk 0:00:30.9]} 22. Be4 {[%clk 0:00:16.4]} 22... Ra5
{[%clk 0:00:28.4]} 23. Kd1 {[%clk 0:00:13.7]} 23... b5 {[%clk 0:00:26.1]} 24.
Bc1 {[%clk 0:00:10]} 24... b4 {[%clk 0:00:26.1]} 25. Ne2 {[%clk 0:00:10.2]}
25... Rxa2 {[%clk 0:00:21.2]} 26. Ng3 {[%clk 0:00:10.5]} 26... h4 {[%clk
0:00:20.2]} 27. Ne2 {[%clk 0:00:09]} 27... b3 {[%clk 0:00:20.6]} 28. Nc3 {[%clk
0:00:08.6]} 28... Ra1 {[%clk 0:00:20.6]} 29. Ke2 {[%clk 0:00:08.3]} 29... Qd4
{[%clk 0:00:17.3]} 30. Bb2 {[%clk 0:00:07]} 30... Rxg1 {[%clk 0:00:17.4]} 31.
Rxg1 {[%clk 0:00:07.4]} 31... bxc2 {[%clk 0:00:14.3]} 32. Bxc2 {[%clk 0:00:07]}
32... Qb6 {[%clk 0:00:13]} 33. Nd1 {[%clk 0:00:07]} 33... Bxb2 {[%clk
0:00:12.5]} 34. Qxh4 {[%clk 0:00:06.7]} 34... Nf5 {[%clk 0:00:05.7]} 35. Qh3
{[%clk 0:00:05.9]} 35... Bg7 {[%clk 0:00:04.3]} 36. Rh1 {[%clk 0:00:06.2]} 36...
f6 {[%clk 0:00:04.9]} 37. Qh7+ {[%clk 0:00:05.9]} 37... Kf7 {[%clk 0:00:05.2]}
38. Ne3 {[%clk 0:00:06.1]} 38... Nd4+ {[%clk 0:00:05.8]} 39. Kd1 {[%clk
0:00:05.9]} 39... Nxc2 {[%clk 0:00:06.5]} 40. Kxc2 {[%clk 0:00:05.8]} 40... Qb3+
{[%clk 0:00:06.9]} 41. Kc1 {[%clk 0:00:06.5]} 41... Ba4 {[%clk 0:00:07.5]} 42.
Rh6 {[%clk 0:00:04.1]} 42... Qa3+ {[%clk 0:00:08]} 43. Kb1 {[%clk 0:00:04.4]}
43... Rb8# {[%clk 0:00:08.4]} 0-1

[Event "Late-Titled-Tuesday-Blitz-June-18-2024"]
[Site "Chess.com"]
[Date "2024.06.18"]
[Round "8"]
[White "Eloist"]
[Black "cristiano78"]
[Result "1-0"]
[WhiteElo "2453"]
[BlackElo "2235"]
[TimeControl "180+1"]
[EndTime "15:29:22 PDT"]
[Termination "Eloist won on time"]

1. e4 {[%clk 0:02:58.6]} 1... c5 {[%clk 0:02:58.9]} 2. Nf3 {[%clk 0:02:57.1]}
2... d6 {[%clk 0:02:58.2]} 3. Bb5+ {[%clk 0:02:56.5]} 3... Bd7 {[%clk 0:02:58]}
4. Bxd7+ {[%clk 0:02:56.1]} 4... Qxd7 {[%clk 0:02:57.2]} 5. c4 {[%clk
0:02:55.9]} 5... Nc6 {[%clk 0:02:57]} 6. d4 {[%clk 0:02:55.5]} 6... cxd4 {[%clk
0:02:56.1]} 7. Nxd4 {[%clk 0:02:56.4]} 7... g6 {[%clk 0:02:55.9]} 8. Nc3 {[%clk
0:02:55.6]} 8... Bg7 {[%clk 0:02:55.2]} 9. Be3 {[%clk 0:02:55.5]} 9... Nf6
{[%clk 0:02:55.3]} 10. f3 {[%clk 0:02:55.6]} 10... O-O {[%clk 0:02:55.2]} 11.
O-O {[%clk 0:02:55.5]} 11... b6 {[%clk 0:02:54.5]} 12. Qd2 {[%clk 0:02:47.6]}
12... Rac8 {[%clk 0:02:54.2]} 13. b3 {[%clk 0:02:44.7]} 13... Nxd4 {[%clk
0:02:52.8]} 14. Bxd4 {[%clk 0:02:43.4]} 14... Ne8 {[%clk 0:02:52.9]} 15. Bxg7
{[%clk 0:02:37.9]} 15... Nxg7 {[%clk 0:02:51.9]} 16. f4 {[%clk 0:02:31.4]} 16...
Ne6 {[%clk 0:02:49.3]} 17. f5 {[%clk 0:02:27.8]} 17... Nc5 {[%clk 0:02:48.5]}
18. Rae1 {[%clk 0:02:09.7]} 18... a5 {[%clk 0:02:33.5]} 19. Rf3 {[%clk
0:02:08.5]} 19... Rce8 {[%clk 0:02:26]} 20. Nd5 {[%clk 0:02:03.4]} 20... Qb7
{[%clk 0:02:14.2]} 21. Rh3 {[%clk 0:01:52.4]} 21... f6 {[%clk 0:01:41.9]} 22.
fxg6 {[%clk 0:01:39.3]} 22... hxg6 {[%clk 0:01:41.4]} 23. Qh6 {[%clk 0:01:38.6]}
23... Kf7 {[%clk 0:01:39.6]} 24. Qh7+ {[%clk 0:01:12.9]} 24... Ke6 {[%clk
0:01:38.3]} 25. Qxg6 {[%clk 0:01:12.8]} 25... Kd7 {[%clk 0:01:37.8]} 26. Rh7
{[%clk 0:00:58.8]} 26... Kd8 {[%clk 0:01:24.3]} 27. h4 {[%clk 0:00:50.1]} 27...
b5 {[%clk 0:01:14.6]} 28. h5 {[%clk 0:00:42.9]} 28... bxc4 {[%clk 0:01:14.2]}
29. bxc4 {[%clk 0:00:43.2]} 29... Qb2 {[%clk 0:01:09.4]} 30. Qg7 {[%clk
0:00:29.1]} 30... Rg8 {[%clk 0:01:00.6]} 31. h6 {[%clk 0:00:18.2]} 31... Rxg7
{[%clk 0:00:53.8]} 32. hxg7 {[%clk 0:00:18.4]} 32... Qd4+ {[%clk 0:00:43.9]} 33.
Kh1 {[%clk 0:00:17.1]} 33... Nxe4 {[%clk 0:00:40.8]} 34. Rh8 {[%clk 0:00:13.1]}
34... Ng3+ {[%clk 0:00:37.8]} 35. Kh2 {[%clk 0:00:13.4]} 35... Nf5 {[%clk
0:00:15.5]} 36. Rxe8+ {[%clk 0:00:12]} 36... Kxe8 {[%clk 0:00:15.8]} 37. g8=Q+
{[%clk 0:00:12.3]} 37... Kd7 {[%clk 0:00:16.2]} 38. Qh7 {[%clk 0:00:08]} 38...
Qg4 {[%clk 0:00:11.4]} 39. Rxe7+ {[%clk 0:00:07.2]} 1-0

[Event "Late-Titled-Tuesday-Blitz-June-18-2024"]
[Site "Chess.com"]
[Date "2024.06.18"]
[Round "8"]
[White "ninjatrick"]
[Black "schondeln"]
[Result "0-1"]
[WhiteElo "2460"]
[BlackElo "2372"]
[TimeControl "180+1"]
[EndTime "15:29:23 PDT"]
[Termination "schondeln won on time"]

1. Nf3 {[%clk 0:03:00.5]} 1... d5 {[%clk 0:02:58.6]} 2. b3 {[%clk 0:03:01.4]}
2... Nf6 {[%clk 0:02:58.1]} 3. Bb2 {[%clk 0:03:02.3]} 3... c6 {[%clk 0:02:58.4]}
4. d4 {[%clk 0:03:03.1]} 4... Bf5 {[%clk 0:02:56.9]} 5. e3 {[%clk 0:03:02.5]}
5... e6 {[%clk 0:02:55.8]} 6. Be2 {[%clk 0:03:03]} 6... Nbd7 {[%clk 0:02:55.8]}
7. O-O {[%clk 0:03:03.8]} 7... h6 {[%clk 0:02:56]} 8. Nbd2 {[%clk 0:03:04.6]}
8... Bd6 {[%clk 0:02:55.9]} 9. Rc1 {[%clk 0:03:05.4]} 9... O-O {[%clk
0:02:55.8]} 10. c4 {[%clk 0:03:06]} 10... Qe7 {[%clk 0:02:55.6]} 11. c5 {[%clk
0:03:06.1]} 11... Bc7 {[%clk 0:02:55.5]} 12. b4 {[%clk 0:03:06.8]} 12... e5
{[%clk 0:02:54.1]} 13. dxe5 {[%clk 0:03:04]} 13... Nxe5 {[%clk 0:02:53.6]} 14.
Nd4 {[%clk 0:03:03.2]} 14... Bd7 {[%clk 0:02:48.6]} 15. h3 {[%clk 0:03:01]}
15... a6 {[%clk 0:02:46.4]} 16. a4 {[%clk 0:02:51.6]} 16... Rfe8 {[%clk
0:02:46.3]} 17. Qb3 {[%clk 0:02:45.5]} 17... Rac8 {[%clk 0:02:18.5]} 18. b5
{[%clk 0:02:44]} 18... axb5 {[%clk 0:02:18]} 19. axb5 {[%clk 0:02:44.9]} 19...
Ne4 {[%clk 0:02:04.7]} 20. Nxe4 {[%clk 0:02:39.5]} 20... dxe4 {[%clk 0:02:05.6]}
21. Rfd1 {[%clk 0:02:26.9]} 21... Ng6 {[%clk 0:01:48.9]} 22. Bc4 {[%clk
0:01:47.8]} 22... Nh4 {[%clk 0:01:31.7]} 23. b6 {[%clk 0:01:29.9]} 23... Bb8
{[%clk 0:01:25.9]} 24. Ne2 {[%clk 0:01:30]} 24... Rcd8 {[%clk 0:01:14.9]} 25.
Nf4 {[%clk 0:01:14.6]} 25... Bf5 {[%clk 0:01:00.6]} 26. Rxd8 {[%clk 0:00:51.8]}
26... Rxd8 {[%clk 0:00:59.4]} 27. Qc3 {[%clk 0:00:52]} 27... Qg5 {[%clk
0:00:55]} 28. g4 {[%clk 0:00:38.4]} 28... Nf3+ {[%clk 0:00:48.2]} 29. Kh1 {[%clk
0:00:26.5]} 29... Be5 {[%clk 0:00:40.7]} 30. Bxf7+ {[%clk 0:00:16.7]} 30... Kh8
{[%clk 0:00:21.3]} 31. Qb3 {[%clk 0:00:17.2]} 31... Bxf4 {[%clk 0:00:18.8]} 32.
Rd1 {[%clk 0:00:12.9]} 32... Rf8 {[%clk 0:00:10.5]} 33. Be6 {[%clk 0:00:05.5]}
33... Bg6 {[%clk 0:00:04.9]} 34. Rd7 {[%clk 0:00:01.5]} 34... Be5 {[%clk
0:00:04.6]} 35. Bxe5 {[%clk 0:00:02]} 35... Qxe5 {[%clk 0:00:04.3]} 0-1

[Event "Late-Titled-Tuesday-Blitz-June-18-2024"]
[Site "Chess.com"]
[Date "2024.06.18"]
[Round "8"]
[White "topce"]
[Black "Mikhail_Golubev"]
[Result "0-1"]
[WhiteElo "2528"]
[BlackElo "2673"]
[TimeControl "180+1"]
[EndTime "15:29:24 PDT"]
[Termination "Mikhail_Golubev won by checkmate"]

1. e4 {[%clk 0:02:57.7]} 1... c5 {[%clk 0:03:00]} 2. Nf3 {[%clk 0:02:54.3]} 2...
d6 {[%clk 0:03:00]} 3. Bb5+ {[%clk 0:02:52.8]} 3... Bd7 {[%clk 0:02:59.6]} 4. a4
{[%clk 0:02:52.2]} 4... Nf6 {[%clk 0:02:54.7]} 5. Qe2 {[%clk 0:02:50]} 5... Nc6
{[%clk 0:02:33.9]} 6. d3 {[%clk 0:02:41.3]} 6... g6 {[%clk 0:02:24.6]} 7. h3
{[%clk 0:02:36.8]} 7... Bg7 {[%clk 0:02:24.6]} 8. O-O {[%clk 0:02:36.6]} 8...
O-O {[%clk 0:02:24.6]} 9. c3 {[%clk 0:02:34.7]} 9... a6 {[%clk 0:02:21.5]} 10.
Bc4 {[%clk 0:02:22.9]} 10... e6 {[%clk 0:02:01.7]} 11. Ba2 {[%clk 0:02:12.6]}
11... Rc8 {[%clk 0:01:58.1]} 12. Rd1 {[%clk 0:02:10.4]} 12... Ne5 {[%clk
0:01:40.3]} 13. Nh2 {[%clk 0:02:05.5]} 13... Bxa4 {[%clk 0:01:38.8]} 14. b3
{[%clk 0:01:58.5]} 14... Bc6 {[%clk 0:01:27.5]} 15. f4 {[%clk 0:01:41.4]} 15...
Ned7 {[%clk 0:01:26.5]} 16. Bb2 {[%clk 0:01:26.1]} 16... Nh5 {[%clk 0:01:22.9]}
17. Qf2 {[%clk 0:01:18.5]} 17... f5 {[%clk 0:01:02.2]} 18. g3 {[%clk 0:01:03.4]}
18... fxe4 {[%clk 0:00:53.7]} 19. dxe4 {[%clk 0:01:04.3]} 19... Bxe4 {[%clk
0:00:52.3]} 20. Rxd6 {[%clk 0:01:00.7]} 20... Qe7 {[%clk 0:00:31.4]} 21. Rd1
{[%clk 0:00:35.6]} 21... e5 {[%clk 0:00:30.8]} 22. b4+ {[%clk 0:00:28.2]} 22...
Kh8 {[%clk 0:00:29.3]} 23. Nd2 {[%clk 0:00:27.4]} 23... Bc6 {[%clk 0:00:23.1]}
24. Re1 {[%clk 0:00:21.9]} 24... Qd8 {[%clk 0:00:23.1]} 25. Nc4 {[%clk
0:00:17.1]} 25... exf4 {[%clk 0:00:22.1]} 26. g4 {[%clk 0:00:16.3]} 26... Ng3
{[%clk 0:00:19.8]} 27. Nd6 {[%clk 0:00:15.6]} 27... Ne5 {[%clk 0:00:18.7]} 28.
Rad1 {[%clk 0:00:14.1]} 28... Qc7 {[%clk 0:00:15]} 29. bxc5 {[%clk 0:00:13.7]}
29... Rcd8 {[%clk 0:00:13.5]} 30. c4 {[%clk 0:00:13.7]} 30... g5 {[%clk
0:00:12.5]} 31. Rxe5 {[%clk 0:00:13.6]} 31... Bxe5 {[%clk 0:00:12]} 32. Bxe5+
{[%clk 0:00:14.5]} 32... Kg8 {[%clk 0:00:11.2]} 33. Nf3 {[%clk 0:00:14.2]} 33...
Qe7 {[%clk 0:00:10.3]} 34. Bd4 {[%clk 0:00:13.7]} 34... Ne2+ {[%clk 0:00:10.1]}
35. Kg2 {[%clk 0:00:13.4]} 35... Nxd4 {[%clk 0:00:09]} 36. Rxd4 {[%clk
0:00:14.3]} 36... Bxf3+ {[%clk 0:00:08.4]} 37. Kxf3 {[%clk 0:00:14.2]} 37... Qe5
{[%clk 0:00:07.2]} 38. Re4 {[%clk 0:00:14.4]} 38... Qc3+ {[%clk 0:00:06.2]} 39.
Kg2 {[%clk 0:00:14.2]} 39... f3+ {[%clk 0:00:06.3]} 40. Kg3 {[%clk 0:00:14.8]}
40... Qa3 {[%clk 0:00:05.3]} 41. c6 {[%clk 0:00:14.5]} 41... Qxd6+ {[%clk
0:00:04.5]} 42. Re5 {[%clk 0:00:11.1]} 42... Qxe5# {[%clk 0:00:04.8]} 0-1

[Event "Late-Titled-Tuesday-Blitz-June-18-2024"]
[Site "Chess.com"]
[Date "2024.06.18"]
[Round "8"]
[White "dianamirza"]
[Black "Rhinos1"]
[Result "1-0"]
[WhiteElo "1806"]
[BlackElo "2041"]
[TimeControl "180+1"]
[EndTime "15:29:25 PDT"]
[Termination "dianamirza won on time"]

1. d4 {[%clk 0:02:17.9]} 1... d5 {[%clk 0:02:54.3]} 2. Nf3 {[%clk 0:02:16.4]}
2... c6 {[%clk 0:02:54.2]} 3. e3 {[%clk 0:02:08.4]} 3... Nf6 {[%clk 0:02:51.5]}
4. Bd3 {[%clk 0:02:09.3]} 4... g6 {[%clk 0:02:51.2]} 5. b3 {[%clk 0:02:09.9]}
5... Bg7 {[%clk 0:02:51.2]} 6. Bb2 {[%clk 0:02:10.6]} 6... O-O {[%clk
0:02:51.1]} 7. Nbd2 {[%clk 0:02:11.2]} 7... Nbd7 {[%clk 0:02:51.1]} 8. O-O
{[%clk 0:02:11.9]} 8... Qc7 {[%clk 0:02:51.3]} 9. Ne5 {[%clk 0:02:12.6]} 9...
Nxe5 {[%clk 0:02:48.7]} 10. dxe5 {[%clk 0:02:13.5]} 10... Ng4 {[%clk 0:02:44.6]}
11. Nf3 {[%clk 0:01:52.2]} 11... f6 {[%clk 0:02:32.9]} 12. exf6 {[%clk
0:01:39.7]} 12... Bxf6 {[%clk 0:02:20.2]} 13. Bxf6 {[%clk 0:01:36.5]} 13... Rxf6
{[%clk 0:02:15.7]} 14. h3 {[%clk 0:01:35.7]} 14... Rxf3 {[%clk 0:02:06.8]} 15.
hxg4 {[%clk 0:01:34.4]} 15... Rf8 {[%clk 0:02:01.2]} 16. f4 {[%clk 0:01:32.5]}
16... e5 {[%clk 0:01:57.8]} 17. g3 {[%clk 0:01:27.7]} 17... Qe7 {[%clk
0:01:40.3]} 18. Kg2 {[%clk 0:01:17.7]} 18... exf4 {[%clk 0:01:24.1]} 19. exf4
{[%clk 0:01:16]} 19... c5 {[%clk 0:01:09.5]} 20. Qf3 {[%clk 0:01:11.1]} 20...
Qf7 {[%clk 0:01:03]} 21. Rae1 {[%clk 0:01:09.5]} 21... b6 {[%clk 0:00:58.4]} 22.
Re5 {[%clk 0:01:01]} 22... Bb7 {[%clk 0:00:57.8]} 23. Rfe1 {[%clk 0:01:00.3]}
23... Rae8 {[%clk 0:00:47.7]} 24. Rxe8 {[%clk 0:00:56.8]} 24... Rxe8 {[%clk
0:00:48.6]} 25. Rxe8+ {[%clk 0:00:56.9]} 25... Qxe8 {[%clk 0:00:49.5]} 26. Qe2
{[%clk 0:00:54.5]} 26... Qc6 {[%clk 0:00:41.5]} 27. Kf2 {[%clk 0:00:48.7]} 27...
d4 {[%clk 0:00:39.6]} 28. Ke1 {[%clk 0:00:38]} 28... Qh1+ {[%clk 0:00:38]} 29.
Kd2 {[%clk 0:00:37.7]} 29... Qf3 {[%clk 0:00:34.1]} 30. Qe8+ {[%clk 0:00:30]}
30... Kg7 {[%clk 0:00:32.8]} 31. Qe5+ {[%clk 0:00:22.5]} 31... Kf8 {[%clk
0:00:27.5]} 32. Qf6+ {[%clk 0:00:20.7]} 32... Kg8 {[%clk 0:00:19.7]} 33. Bc4+
{[%clk 0:00:18.5]} 33... Bd5 {[%clk 0:00:19.9]} 34. Qd8+ {[%clk 0:00:17]} 34...
Kg7 {[%clk 0:00:19.7]} 35. Qxd5 {[%clk 0:00:17.1]} 35... Qe3+ {[%clk 0:00:17.2]}
36. Kd1 {[%clk 0:00:16.1]} 36... Qg1+ {[%clk 0:00:17.4]} 37. Kd2 {[%clk
0:00:15.7]} 37... Qe3+ {[%clk 0:00:16.9]} 38. Kd1 {[%clk 0:00:14.9]} 38... Qg1+
{[%clk 0:00:16]} 39. Ke2 {[%clk 0:00:14.6]} 39... Qe3+ {[%clk 0:00:11.9]} 40.
Kf1 {[%clk 0:00:14.2]} 40... Qc1+ {[%clk 0:00:08.5]} 41. Kg2 {[%clk 0:00:14.4]}
41... Qxc2+ {[%clk 0:00:06.3]} 42. Kh3 {[%clk 0:00:13.5]} 42... Qc3 {[%clk
0:00:02.3]} 43. Qf7+ {[%clk 0:00:13.2]} 43... Kh6 {[%clk 0:00:01.9]} 44. g5+
{[%clk 0:00:13.6]} 1-0

[Event "Late-Titled-Tuesday-Blitz-June-18-2024"]
[Site "Chess.com"]
[Date "2024.06.18"]
[Round "8"]
[White "Zurability"]
[Black "TigrVShlyape"]
[Result "0-1"]
[WhiteElo "2812"]
[BlackElo "3007"]
[TimeControl "180+1"]
[EndTime "15:29:27 PDT"]
[Termination "TigrVShlyape won by resignation"]

1. e4 {[%clk 0:03:00.9]} 1... c5 {[%clk 0:02:59.5]} 2. Nf3 {[%clk 0:02:58.8]}
2... e6 {[%clk 0:02:59.8]} 3. c3 {[%clk 0:02:56.5]} 3... Nf6 {[%clk 0:02:52.3]}
4. e5 {[%clk 0:02:51.7]} 4... Nd5 {[%clk 0:02:52.3]} 5. d4 {[%clk 0:02:49.3]}
5... cxd4 {[%clk 0:02:52.3]} 6. cxd4 {[%clk 0:02:50.2]} 6... b6 {[%clk
0:02:50.5]} 7. Bd3 {[%clk 0:02:41.1]} 7... Ba6 {[%clk 0:02:49.9]} 8. O-O {[%clk
0:02:38.7]} 8... Be7 {[%clk 0:02:46.6]} 9. a3 {[%clk 0:02:33.4]} 9... Bxd3
{[%clk 0:02:42.8]} 10. Qxd3 {[%clk 0:02:33.5]} 10... d6 {[%clk 0:02:42]} 11.
Nbd2 {[%clk 0:02:23.6]} 11... Nd7 {[%clk 0:02:35.6]} 12. Ne4 {[%clk 0:02:08.3]}
12... dxe5 {[%clk 0:02:35]} 13. dxe5 {[%clk 0:02:09.1]} 13... h6 {[%clk
0:02:30.7]} 14. Re1 {[%clk 0:02:05.8]} 14... O-O {[%clk 0:02:29.3]} 15. Ng3
{[%clk 0:02:05.3]} 15... Nc5 {[%clk 0:02:28.5]} 16. Qc4 {[%clk 0:01:58]} 16...
Kh8 {[%clk 0:02:18.2]} 17. Nh5 {[%clk 0:01:54.5]} 17... Rg8 {[%clk 0:02:11.6]}
18. b4 {[%clk 0:01:49.3]} 18... Nd7 {[%clk 0:02:10.3]} 19. Qg4 {[%clk
0:01:36.1]} 19... Kh7 {[%clk 0:02:05.3]} 20. Bd2 {[%clk 0:01:13.3]} 20... Rc8
{[%clk 0:02:04.5]} 21. Rad1 {[%clk 0:01:13.6]} 21... b5 {[%clk 0:02:01.9]} 22.
Qh3 {[%clk 0:01:02.3]} 22... Qf8 {[%clk 0:01:51.4]} 23. Re4 {[%clk 0:00:54.9]}
23... Rc4 {[%clk 0:01:45.7]} 24. Rxc4 {[%clk 0:00:44.8]} 24... bxc4 {[%clk
0:01:45.7]} 25. Qg4 {[%clk 0:00:43.4]} 25... N7b6 {[%clk 0:01:43.1]} 26. Ng3
{[%clk 0:00:31.9]} 26... Kh8 {[%clk 0:01:34.9]} 27. Ne4 {[%clk 0:00:31.5]} 27...
Qe8 {[%clk 0:00:48.7]} 28. Qh3 {[%clk 0:00:30.4]} 28... Kh7 {[%clk 0:00:39.5]}
29. Nfg5+ {[%clk 0:00:26.5]} 29... Bxg5 {[%clk 0:00:39.2]} 30. Nxg5+ {[%clk
0:00:23.6]} 30... Kh8 {[%clk 0:00:39.4]} 31. Ne4 {[%clk 0:00:15.7]} 31... Qa4
{[%clk 0:00:34.5]} 32. Rc1 {[%clk 0:00:12.4]} 32... Kh7 {[%clk 0:00:33.6]} 33.
Ng5+ {[%clk 0:00:11.3]} 33... Kg6 {[%clk 0:00:29.5]} 34. Qg3 {[%clk 0:00:10.5]}
34... Qb3 {[%clk 0:00:26.9]} 35. Qg4 {[%clk 0:00:08.8]} 35... f5 {[%clk
0:00:24.8]} 36. exf6 {[%clk 0:00:07.9]} 36... Nxf6 {[%clk 0:00:25.1]} 37. Qxe6
{[%clk 0:00:03.3]} 37... hxg5 {[%clk 0:00:25.3]} 38. Be3 {[%clk 0:00:01.7]}
38... Qd3 {[%clk 0:00:24.3]} 39. Re1 {[%clk 0:00:01.3]} 39... Qd5 {[%clk
0:00:23.8]} 40. Qe7 {[%clk 0:00:01]} 40... Re8 {[%clk 0:00:23.3]} 41. Qxa7
{[%clk 0:00:01.4]} 41... Nbd7 {[%clk 0:00:23.5]} 42. Qc7 {[%clk 0:00:01.4]}
42... Ne5 {[%clk 0:00:23.7]} 43. h4 {[%clk 0:00:01.5]} 43... Nd3 {[%clk
0:00:23.6]} 44. Rd1 {[%clk 0:00:02]} 44... gxh4 {[%clk 0:00:23.3]} 45. Qh2
{[%clk 0:00:02.4]} 45... Qh5 {[%clk 0:00:22.8]} 46. Rd2 {[%clk 0:00:02]} 46...
Qg4 {[%clk 0:00:22.1]} 47. Qc7 {[%clk 0:00:01.9]} 47... h3 {[%clk 0:00:22]} 48.
Qc6 {[%clk 0:00:01.8]} 48... Re4 {[%clk 0:00:20.7]} 49. f3 {[%clk 0:00:01.2]}
49... Qg3 {[%clk 0:00:20.6]} 50. fxe4 {[%clk 0:00:01.4]} 50... Qxe3+ {[%clk
0:00:20.4]} 51. Kh2 {[%clk 0:00:02.3]} 51... Qxd2 {[%clk 0:00:20.4]} 52. e5
{[%clk 0:00:02.7]} 52... Qf4+ {[%clk 0:00:20.7]} 0-1

[Event "Late-Titled-Tuesday-Blitz-June-18-2024"]
[Site "Chess.com"]
[Date "2024.06.18"]
[Round "8"]
[White "Aswathchess"]
[Black "HajiyevKanan"]
[Result "1/2-1/2"]
[WhiteElo "2766"]
[BlackElo "2564"]
[TimeControl "180+1"]
[EndTime "15:29:29 PDT"]
[Termination "Game drawn by repetition"]

1. e4 {[%clk 0:03:00.9]} 1... a6 {[%clk 0:02:54.5]} 2. Nf3 {[%clk 0:02:59.5]}
2... c6 {[%clk 0:02:55.2]} 3. c4 {[%clk 0:02:59]} 3... d5 {[%clk 0:02:56.1]} 4.
exd5 {[%clk 0:02:58.6]} 4... cxd5 {[%clk 0:02:57]} 5. cxd5 {[%clk 0:02:58.9]}
5... Nf6 {[%clk 0:02:57.5]} 6. Nc3 {[%clk 0:02:59]} 6... Nxd5 {[%clk 0:02:57.7]}
7. Bc4 {[%clk 0:02:59.1]} 7... e6 {[%clk 0:02:57.2]} 8. O-O {[%clk 0:02:58.6]}
8... Nxc3 {[%clk 0:02:55]} 9. dxc3 {[%clk 0:02:57.9]} 9... b5 {[%clk 0:02:55.5]}
10. Qxd8+ {[%clk 0:02:56.3]} 10... Kxd8 {[%clk 0:02:56.4]} 11. Rd1+ {[%clk
0:02:56.6]} 11... Ke8 {[%clk 0:02:56]} 12. Be2 {[%clk 0:02:56.1]} 12... Bb7
{[%clk 0:02:56.3]} 13. a4 {[%clk 0:02:52.3]} 13... b4 {[%clk 0:02:38.7]} 14. Bd2
{[%clk 0:02:44.7]} 14... Nc6 {[%clk 0:02:34.6]} 15. cxb4 {[%clk 0:02:30.5]}
15... Bxb4 {[%clk 0:02:30.2]} 16. Bxb4 {[%clk 0:02:22]} 16... Nxb4 {[%clk
0:02:31.1]} 17. Rac1 {[%clk 0:02:18.7]} 17... Nd5 {[%clk 0:02:07.3]} 18. Nd4
{[%clk 0:02:10.7]} 18... Ke7 {[%clk 0:01:58.3]} 19. Bf3 {[%clk 0:02:04.4]} 19...
Rhc8 {[%clk 0:01:58.1]} 20. Nb3 {[%clk 0:02:03.2]} 20... Rxc1 {[%clk 0:01:53.7]}
21. Rxc1 {[%clk 0:02:04.1]} 21... Rc8 {[%clk 0:01:31.3]} 22. Rxc8 {[%clk
0:01:57.3]} 22... Bxc8 {[%clk 0:01:32.2]} 23. Bxd5 {[%clk 0:01:57.3]} 23... exd5
{[%clk 0:01:33.1]} 24. f3 {[%clk 0:01:55.5]} 24... Bd7 {[%clk 0:01:33]} 25. Nc5
{[%clk 0:01:51.8]} 25... Bxa4 {[%clk 0:01:27.8]} 26. Nxa4 {[%clk 0:01:51.2]}
26... Kd6 {[%clk 0:01:26.1]} 27. Kf2 {[%clk 0:01:51.4]} 27... Kc6 {[%clk
0:01:19.4]} 28. Ke3 {[%clk 0:01:48.3]} 28... Kb5 {[%clk 0:01:19.9]} 29. Nc3+
{[%clk 0:01:46.5]} 29... Kc4 {[%clk 0:01:19.9]} 30. Kd2 {[%clk 0:01:46.6]} 30...
d4 {[%clk 0:01:19.1]} 31. Ne2 {[%clk 0:01:46.5]} 31... a5 {[%clk 0:01:14.4]} 32.
Nc1 {[%clk 0:01:40.8]} 32... f5 {[%clk 0:01:10.4]} 33. b3+ {[%clk 0:01:38.1]}
33... Kb4 {[%clk 0:00:58.2]} 34. Kd3 {[%clk 0:01:39]} 34... Ka3 {[%clk
0:00:58.8]} 35. Kc2 {[%clk 0:01:28.2]} 35... g6 {[%clk 0:00:47.3]} 36. f4 {[%clk
0:01:27.3]} 36... Kb4 {[%clk 0:00:45.6]} 37. Ne2 {[%clk 0:01:26]} 37... d3+
{[%clk 0:00:43.6]} 38. Kxd3 {[%clk 0:01:26.4]} 38... Kxb3 {[%clk 0:00:44.5]} 39.
Nd4+ {[%clk 0:01:25.5]} 39... Kb2 {[%clk 0:00:35]} 40. h3 {[%clk 0:00:56.3]}
40... a4 {[%clk 0:00:34.7]} 41. g4 {[%clk 0:00:55.8]} 41... a3 {[%clk
0:00:28.2]} 42. gxf5 {[%clk 0:00:52.7]} 42... a2 {[%clk 0:00:28.3]} 43. Nc2
{[%clk 0:00:48.7]} 43... gxf5 {[%clk 0:00:28.5]} 44. Kd2 {[%clk 0:00:48.9]}
44... h6 {[%clk 0:00:24.9]} 45. Kd3 {[%clk 0:00:46.2]} 45... h5 {[%clk
0:00:21.2]} 46. h4 {[%clk 0:00:46.2]} 46... Kc1 {[%clk 0:00:07.8]} 47. Kc3
{[%clk 0:00:42.8]} 47... Kb1 {[%clk 0:00:03.2]} 48. Na3+ {[%clk 0:00:25.8]}
48... Kc1 {[%clk 0:00:03.6]} 49. Nc2 {[%clk 0:00:26.4]} 49... Kb1 {[%clk
0:00:04.1]} 50. Kb3 {[%clk 0:00:24.8]} 50... Kc1 {[%clk 0:00:04.1]} 51. Kc3
{[%clk 0:00:19.5]} 1/2-1/2